fUSD/lending_fUSD_20260702
["ID","MTS","AMOUNT","RATE_DAILY","PERIOD"]
[426861666,1782965440000,-509.82,0.000303,2]
[426861669,1782965440000,-509.82,0.000303,2]
[426861675,1782965440000,-509.82,0.000303,2]
[426861667,1782965440000,-509.82,0.000303,2]
[426861676,1782965440000,-509.82,0.000303,2]
[426861674,1782965440000,-509.82,0.000303,2]
[426861673,1782965440000,-509.82,0.000303,2]
[426861678,1782965440000,-509.82,0.000303,2]
[426861677,1782965440000,-509.82,0.000303,2]
[426861679,1782965440000,-509.82,0.000303,2]
[426861682,1782965440000,-509.82,0.000303,2]
[426861672,1782965440000,-509.82,0.000303,2]
[426861680,1782965440000,-509.82,0.000303,2]
[426861683,1782965440000,-509.82,0.000303,2]
[426861684,1782965440000,-509.82,0.000303,2]
[426861685,1782965440000,-509.82,0.000303,2]
[426861686,1782965440000,-509.82,0.000303,2]
[426861687,1782965440000,-509.82,0.000303,2]
[426861689,1782965440000,-509.82,0.000303,2]
[426861691,1782965440000,-509.82,0.000303,2]
[426861637,1782965440000,-475.46293887,0.00030137,2]
[426861693,1782965440000,-509.82,0.000303,2]
[426861690,1782965440000,-509.82,0.000303,2]
[426861694,1782965440000,-509.82,0.000303,2]
[426861681,1782965440000,-509.82,0.000303,2]
[426861670,1782965440000,-509.82,0.000303,2]
[426861692,1782965440000,-509.82,0.000303,2]
[426861671,1782965440000,-509.82,0.000303,2]
[426861668,1782965440000,-509.82,0.000303,2]
[426861640,1782965440000,-1000.0,0.00030137,120]
[426861644,1782965440000,-1018.43,0.00030137,2]
[426861645,1782965440000,-169.952,0.00030137,2]
[426861646,1782965440000,-500.0,0.00030137,3]
[426861649,1782965440000,-500.0,0.00030137,3]
[426861651,1782965440000,-500.0,0.00030137,3]
[426861650,1782965440000,-500.0,0.00030137,3]
[426861647,1782965440000,-500.0,0.00030137,3]
[426861648,1782965440000,-500.0,0.00030137,3]
[426861643,1782965440000,-688.3341956,0.00030137,2]
[426861652,1782965440000,-1514.17607296,0.00030137,2]
[426861642,1782965440000,-458.88946373,0.00030137,2]
[426861664,1782965440000,-328.7732212,0.00030295,2]
[426861654,1782965440000,-183.0,0.0003016,2]
[426861663,1782965440000,-544.10854893,0.00030263,2]
[426861662,1782965440000,-1821.73,0.0003025,2]
[426861661,1782965440000,-12500.0,0.0003025,2]
[426861658,1782965440000,-2500.0,0.0003025,2]
[426861659,1782965440000,-25000.0,0.0003025,2]
[426861657,1782965440000,-189.38207532,0.00030219,2]
[426861655,1782965440000,-1589.0,0.00030174,30]
[426861653,1782965440000,-451.10351654,0.00030137,30]
[426861656,1782965440000,-15000.0,0.000302,2]
[426861660,1782965440000,-12500.0,0.0003025,2]
[426861665,1782965440000,-15000.0,0.000303,2]
[426861720,1782965441000,-151.0,0.00030372,7]
[426861737,1782965441000,-12500.0,0.000305,2]
[426861722,1782965441000,-15000.0,0.000304,2]
[426861717,1782965441000,-2000.0,0.0003037,26]
[426861724,1782965441000,-2000.0,0.00030409,60]
[426861725,1782965441000,-2000.0,0.00030409,31]
[426861721,1782965441000,-12500.0,0.00030375,2]
[426861723,1782965441000,-467.94526073,0.000304,2]
[426861726,1782965441000,-18653.32927059,0.0003041,2]
[426861727,1782965441000,-3000.0,0.0003041,31]
[426861733,1782965441000,-518.36,0.00030499,7]
[426861729,1782965441000,-168.0,0.00030411,120]
[426861731,1782965441000,-1589.0,0.00030448,30]
[426861730,1782965441000,-175.51104745,0.00030411,60]
[426861728,1782965441000,-163.87,0.00030411,120]
[426861735,1782965441000,-2500.0,0.000305,2]
[426861734,1782965441000,-500.0,0.00030499,120]
[426861732,1782965441000,-500.0,0.00030499,7]
[426861738,1782965441000,-15000.0,0.000305,2]
[426861719,1782965441000,-1856.791,0.00030372,26]
[426861736,1782965441000,-25000.0,0.000305,2]
[426861718,1782965441000,-171.854,0.00030372,26]
[426861703,1782965441000,-509.82,0.000303,2]
[426861715,1782965441000,-251.0,0.0003036,2]
[426861699,1782965441000,-509.82,0.000303,2]
[426861747,1782965441000,-500.0,0.00030575,14]
[426861698,1782965441000,-509.82,0.000303,2]
[426861696,1782965441000,-509.82,0.000303,2]
[426861702,1782965441000,-509.82,0.000303,2]
[426861700,1782965441000,-509.82,0.000303,2]
[426861695,1782965441000,-509.82,0.000303,2]
[426861697,1782965441000,-509.82,0.000303,2]
[426861701,1782965441000,-509.82,0.000303,2]
[426861716,1782965441000,-251.0,0.0003036,2]
[426861704,1782965441000,-509.82,0.000303,2]
[426861707,1782965441000,-190.99906877,0.00030333,2]
[426861705,1782965441000,-509.82,0.000303,2]
[426861709,1782965441000,-152.09451491,0.00030344,2]
[426861710,1782965441000,-260.95,0.00030345,16]
[426861708,1782965441000,-10000.0,0.00030333,2]
[426861711,1782965441000,-350.0,0.00030345,16]
[426861712,1782965441000,-500.0,0.00030349,2]
[426861713,1782965441000,-279.4681998,0.0003036,2]
[426861714,1782965441000,-251.0,0.0003036,2]
[426861706,1782965441000,-510.18,0.000303,2]
[426861744,1782965441000,-500.0,0.00030575,120]
[426861782,1782965441000,-15000.0,0.000307,2]
[426861741,1782965441000,-800.0,0.000305,2]
[426861773,1782965441000,-10000.0,0.00030667,2]
[426861766,1782965441000,-526.96,0.000306,2]
[426861762,1782965441000,-526.96,0.000306,2]
[426861770,1782965441000,-527.07,0.000306,2]
[426861765,1782965441000,-526.96,0.000306,2]
[426861771,1782965441000,-583.74037118,0.00030615,2]
[426861774,1782965441000,-251.0,0.0003069,2]
[426861769,1782965441000,-526.96,0.000306,2]
[426861776,1782965441000,-251.0,0.0003069,2]
[426861768,1782965441000,-526.96,0.000306,2]
[426861786,1782965441000,-500.0,0.00030749,2]
[426861777,1782965441000,-251.0,0.0003069,2]
[426861778,1782965441000,-251.0,0.0003069,2]
[426861775,1782965441000,-251.0,0.0003069,2]
[426861780,1782965441000,-251.0,0.0003069,2]
[426861784,1782965441000,-150.0,0.00030738,2]
[426861779,1782965441000,-251.0,0.0003069,2]
[426861781,1782965441000,-251.0,0.0003069,2]
[426861785,1782965441000,-451.10351654,0.00030746,30]
[426861740,1782965441000,-800.0,0.000305,2]
[426861787,1782965441000,-1034.04587809,0.0003075,2]
[426861772,1782965441000,-12500.0,0.00030625,2]
[426861783,1782965441000,-1589.0,0.00030722,30]
[426861764,1782965441000,-526.96,0.000306,2]
[426861763,1782965441000,-526.96,0.000306,2]
[426861739,1782965441000,-12500.0,0.000305,2]
[426861742,1782965441000,-800.0,0.000305,2]
[426861748,1782965441000,-500.0,0.00030575,120]
[426861743,1782965441000,-254.0,0.00030538,2]
[426861749,1782965441000,-500.0,0.00030575,120]
[426861745,1782965441000,-500.0,0.00030575,120]
[426861746,1782965441000,-500.0,0.00030575,14]
[426861752,1782965441000,-312.0,0.00030575,120]
[426861750,1782965441000,-500.0,0.00030575,120]
[426861751,1782965441000,-500.0,0.00030575,120]
[426861755,1782965441000,-526.96,0.000306,2]
[426861760,1782965441000,-526.96,0.000306,2]
[426861754,1782965441000,-526.96,0.000306,2]
[426861753,1782965441000,-15000.0,0.000306,2]
[426861758,1782965441000,-526.96,0.000306,2]
[426861757,1782965441000,-526.96,0.000306,2]
[426861759,1782965441000,-526.96,0.000306,2]
[426861756,1782965441000,-526.96,0.000306,2]
[426861767,1782965441000,-526.96,0.000306,2]
[426861761,1782965441000,-526.96,0.000306,2]
[426861792,1782965442000,-966.02901049,0.0003075,2]
[426861788,1782965442000,-537.27830085,0.0003075,2]
[426861789,1782965442000,-928.67582106,0.0003075,2]
[426861790,1782965442000,-20433.37211996,0.0003075,2]
[426861793,1782965442000,-46.99649017,0.0002999,10]
[426861791,1782965442000,-2211.59744496,0.0003075,2]
[426861796,1782965442000,-637.04383556,0.0002999,10]
[426861795,1782965442000,-628.5015828,0.0002999,10]
[426861797,1782965442000,-4015.35959293,0.0002999,10]
[426861798,1782965442000,-1062.72893485,0.0002999,10]
[426861813,1782965442000,-1888.73342418,0.0002999,10]
[426861814,1782965442000,-269.53870786,0.0002999,10]
[426861794,1782965442000,-9154.56711446,0.0002999,10]
[426861835,1782965443000,-1593.31416,0.00030821,7]
[426861834,1782965443000,-1593.31416,0.00030821,7]
[426861830,1782965443000,-151.0,0.00030821,7]
[426861832,1782965443000,-1593.31416,0.00030821,7]
[426861833,1782965443000,-1593.31416,0.00030821,7]
[426861828,1782965443000,-151.0,0.00030821,7]
[426861838,1782965443000,-151.0,0.00030875,7]
[426861836,1782965443000,-3000.0,0.00030821,32]
[426861831,1782965443000,-151.0,0.00030821,7]
[426861839,1782965443000,-151.0,0.00030875,7]
[426861829,1782965443000,-151.0,0.00030821,7]
[426861837,1782965443000,-12500.0,0.00030875,2]
[426861823,1782965443000,-926.4508,0.00027397,2]
[426861826,1782965443000,-12500.0,0.0003075,2]
[426861824,1782965443000,-754.49012506,0.0003075,2]
[426861825,1782965443000,-12500.0,0.0003075,2]
[426861822,1782965443000,-573.5492,0.00027397,2]
[426861821,1782965443000,-634.51129953,0.0003075,2]
[426861820,1782965443000,-523.95355588,0.0002999,10]
[426861818,1782965443000,-1261.35698614,0.0002999,10]
[426861819,1782965443000,-425.6300503,0.0002999,10]
[426861816,1782965443000,-607.958004,0.0002999,10]
[426861817,1782965443000,-467.9684,0.0002999,10]
[426861815,1782965443000,-1493.52332087,0.0002999,10]
[426861841,1782965443000,-17207.71421799,0.000309,2]
[426861827,1782965443000,-2242.3,0.000308,2]
[426861843,1782965443000,-151.0,0.000309,7]
[426861845,1782965443000,-503.0,0.00030913,6]
[426861842,1782965443000,-151.0,0.000309,7]
[426861869,1782965443000,-251.0,0.0003102,2]
[426861866,1782965443000,-315.58251,0.00031,7]
[426861864,1782965443000,-151.0,0.00031,7]
[426861862,1782965443000,-1000.0,0.00031,7]
[426861865,1782965443000,-315.58251,0.00031,7]
[426861868,1782965443000,-251.0,0.0003102,2]
[426861863,1782965443000,-151.0,0.00031,7]
[426861867,1782965443000,-150.0,0.00031011,2]
[426861861,1782965443000,-800.0,0.00031,2]
[426861857,1782965443000,-12500.0,0.00031,2]
[426861852,1782965443000,-500.0,0.00030999,120]
[426861860,1782965443000,-800.0,0.00031,2]
[426861856,1782965443000,-12500.0,0.00031,2]
[426861870,1782965443000,-251.0,0.0003102,2]
[426861853,1782965443000,-2500.0,0.00031,2]
[426861850,1782965443000,-500.0,0.00030999,7]
[426861840,1782965443000,-166.98,0.00030888,2]
[426861849,1782965443000,-3000.0,0.00030999,2]
[426861846,1782965443000,-1589.0,0.00030996,30]
[426861847,1782965443000,-300.0,0.00030999,10]
[426861844,1782965443000,-239.694686,0.000309,7]
[426861858,1782965443000,-800.0,0.00031,2]
[426861851,1782965443000,-518.36,0.00030999,7]
[426861859,1782965443000,-200.0,0.00031,11]
[426861854,1782965443000,-10000.0,0.00031,2]
[426861855,1782965443000,-25000.0,0.00031,2]
[426861848,1782965443000,-306.43330787,0.00030999,10]
[426861911,1782965444000,-500.0,0.0003125,2]
[426861913,1782965444000,-500.0,0.0003125,2]
[426861910,1782965444000,-500.0,0.0003125,2]
[426861912,1782965444000,-500.0,0.0003125,2]
[426861906,1782965444000,-500.0,0.0003125,2]
[426861904,1782965444000,-500.0,0.0003125,2]
[426861905,1782965444000,-500.0,0.0003125,2]
[426861901,1782965444000,-500.0,0.0003125,2]
[426861902,1782965444000,-500.0,0.0003125,2]
[426861899,1782965444000,-500.0,0.0003125,2]
[426861914,1782965444000,-500.0,0.0003125,2]
[426861900,1782965444000,-500.0,0.0003125,2]
[426861909,1782965444000,-500.0,0.0003125,2]
[426861918,1782965444000,-500.0,0.0003125,2]
[426861916,1782965444000,-500.0,0.0003125,2]
[426861920,1782965444000,-500.0,0.0003125,2]
[426861919,1782965444000,-500.0,0.0003125,2]
[426861917,1782965444000,-500.0,0.0003125,2]
[426861922,1782965444000,-500.0,0.0003125,2]
[426861932,1782965444000,-500.0,0.0003125,2]
[426861921,1782965444000,-500.0,0.0003125,2]
[426861924,1782965444000,-500.0,0.0003125,2]
[426861923,1782965444000,-500.0,0.0003125,2]
[426861925,1782965444000,-500.0,0.0003125,2]
[426861927,1782965444000,-500.0,0.0003125,2]
[426861903,1782965444000,-500.0,0.0003125,2]
[426861915,1782965444000,-500.0,0.0003125,2]
[426861898,1782965444000,-500.0,0.0003125,2]
[426861888,1782965444000,-12500.0,0.0003125,2]
[426861908,1782965444000,-500.0,0.0003125,2]
[426861872,1782965444000,-251.0,0.0003102,2]
[426861871,1782965444000,-251.0,0.0003102,2]
[426861882,1782965444000,-150.0,0.00031206,2]
[426861874,1782965444000,-251.0,0.0003102,2]
[426861884,1782965444000,-300.0,0.00031249,10]
[426861883,1782965444000,-3000.0,0.00031232,33]
[426861885,1782965444000,-500.0,0.00031249,2]
[426861873,1782965444000,-251.0,0.0003102,2]
[426861875,1782965444000,-18653.32927059,0.00031032,2]
[426861876,1782965444000,-150.0,0.0003104,7]
[426861877,1782965444000,-10863.25146301,0.0003104,3]
[426861879,1782965444000,-328.77322114,0.00031063,2]
[426861907,1782965444000,-500.0,0.0003125,2]
[426861881,1782965444000,-12500.0,0.00031125,2]
[426861928,1782965444000,-500.0,0.0003125,2]
[426861887,1782965444000,-25000.0,0.0003125,2]
[426861886,1782965444000,-2500.0,0.0003125,2]
[426861890,1782965444000,-151.0,0.0003125,7]
[426861892,1782965444000,-151.0,0.0003125,7]
[426861891,1782965444000,-151.0,0.0003125,7]
[426861893,1782965444000,-151.0,0.0003125,7]
[426861895,1782965444000,-500.0,0.0003125,2]
[426861896,1782965444000,-500.0,0.0003125,2]
[426861889,1782965444000,-12500.0,0.0003125,2]
[426861894,1782965444000,-151.0,0.0003125,7]
[426861897,1782965444000,-500.0,0.0003125,2]
[426861880,1782965444000,-720.7,0.00031063,30]
[426861930,1782965444000,-500.0,0.0003125,2]
[426861968,1782965444000,-500.0,0.0003125,2]
[426861931,1782965444000,-500.0,0.0003125,2]
[426861963,1782965444000,-500.0,0.0003125,2]
[426861961,1782965444000,-500.0,0.0003125,2]
[426861960,1782965444000,-500.0,0.0003125,2]
[426861962,1782965444000,-500.0,0.0003125,2]
[426861965,1782965444000,-500.0,0.0003125,2]
[426861964,1782965444000,-500.0,0.0003125,2]
[426861966,1782965444000,-500.0,0.0003125,2]
[426861970,1782965444000,-500.0,0.0003125,2]
[426861980,1782965444000,-500.0,0.0003125,2]
[426861972,1782965444000,-500.0,0.0003125,2]
[426861977,1782965444000,-500.0,0.0003125,2]
[426861975,1782965444000,-500.0,0.0003125,2]
[426861973,1782965444000,-500.0,0.0003125,2]
[426861974,1782965444000,-500.0,0.0003125,2]
[426861978,1782965444000,-500.0,0.0003125,2]
[426861981,1782965444000,-152.117066,0.0003125,2]
[426861979,1782965444000,-500.0,0.0003125,2]
[426861976,1782965444000,-500.0,0.0003125,2]
[426861983,1782965444000,-697.92022816,0.00031307,2]
[426861982,1782965444000,-1589.0,0.0003127,30]
[426861984,1782965444000,-359.01705151,0.00031316,2]
[426861985,1782965444000,-151.0,0.00031333,7]
[426861988,1782965444000,-10000.0,0.00031333,2]
[426861987,1782965444000,-151.0,0.00031333,7]
[426861986,1782965444000,-151.0,0.00031333,7]
[426861926,1782965444000,-500.0,0.0003125,2]
[426861989,1782965444000,-314.13992007,0.00031341,2]
[426861956,1782965444000,-500.0,0.0003125,2]
[426861959,1782965444000,-500.0,0.0003125,2]
[426861971,1782965444000,-500.0,0.0003125,2]
[426861969,1782965444000,-500.0,0.0003125,2]
[426861929,1782965444000,-500.0,0.0003125,2]
[426861958,1782965444000,-500.0,0.0003125,2]
[426861934,1782965444000,-500.0,0.0003125,2]
[426861936,1782965444000,-500.0,0.0003125,2]
[426861933,1782965444000,-500.0,0.0003125,2]
[426861937,1782965444000,-500.0,0.0003125,2]
[426861939,1782965444000,-500.0,0.0003125,2]
[426861942,1782965444000,-500.0,0.0003125,2]
[426861938,1782965444000,-500.0,0.0003125,2]
[426861940,1782965444000,-500.0,0.0003125,2]
[426861941,1782965444000,-500.0,0.0003125,2]
[426861943,1782965444000,-500.0,0.0003125,2]
[426861945,1782965444000,-500.0,0.0003125,2]
[426861947,1782965444000,-500.0,0.0003125,2]
[426861935,1782965444000,-500.0,0.0003125,2]
[426861944,1782965444000,-500.0,0.0003125,2]
[426861946,1782965444000,-500.0,0.0003125,2]
[426861957,1782965444000,-500.0,0.0003125,2]
[426861951,1782965444000,-500.0,0.0003125,2]
[426861955,1782965444000,-500.0,0.0003125,2]
[426861950,1782965444000,-500.0,0.0003125,2]
[426861967,1782965444000,-500.0,0.0003125,2]
[426861948,1782965444000,-500.0,0.0003125,2]
[426861954,1782965444000,-500.0,0.0003125,2]
[426861953,1782965444000,-500.0,0.0003125,2]
[426861949,1782965444000,-500.0,0.0003125,2]
[426861952,1782965444000,-500.0,0.0003125,2]
[426862030,1782965445000,-151.0,0.00031567,7]
[426862027,1782965445000,-151.0,0.000315,7]
[426862018,1782965445000,-500.0,0.00031499,120]
[426862022,1782965445000,-12500.0,0.000315,2]
[426862050,1782965445000,-1000.0,0.00031781,32]
[426862028,1782965445000,-188.26400183,0.00031507,15]
[426862023,1782965445000,-12500.0,0.000315,2]
[426862021,1782965445000,-7239.06,0.000315,2]
[426862040,1782965445000,-18653.32927059,0.00031655,2]
[426862025,1782965445000,-800.0,0.000315,2]
[426862024,1782965445000,-800.0,0.000315,2]
[426862029,1782965445000,-1589.0,0.00031544,30]
[426862037,1782965445000,-3000.0,0.00031643,34]
[426862031,1782965445000,-159.27427,0.00031567,7]
[426862035,1782965445000,-151.0,0.00031641,7]
[426862034,1782965445000,-350.0,0.00031632,20]
[426862036,1782965445000,-2000.0,0.00031642,34]
[426862039,1782965445000,-467.94526073,0.0003165,2]
[426862032,1782965445000,-715.0,0.000316,2]
[426862038,1782965445000,-151.0,0.00031646,2]
[426862041,1782965445000,-10000.0,0.00031667,2]
[426862043,1782965445000,-251.0,0.0003168,2]
[426862044,1782965445000,-251.0,0.0003168,2]
[426862042,1782965445000,-251.0,0.0003168,2]
[426862020,1782965445000,-1616.11,0.000315,2]
[426862033,1782965445000,-12500.0,0.00031625,2]
[426862026,1782965445000,-800.0,0.000315,2]
[426861993,1782965445000,-251.0,0.0003135,2]
[426862017,1782965445000,-518.36,0.00031499,7]
[426862047,1782965445000,-1000.0,0.00031726,32]
[426861990,1782965445000,-251.0,0.0003135,2]
[426861992,1782965445000,-251.0,0.0003135,2]
[426861991,1782965445000,-251.0,0.0003135,2]
[426861994,1782965445000,-251.0,0.0003135,2]
[426862000,1782965445000,-773.20424292,0.0003135,2]
[426862001,1782965445000,-773.20424289,0.0003135,2]
[426861995,1782965445000,-251.0,0.0003135,2]
[426861999,1782965445000,-188.23177685,0.0003135,2]
[426862004,1782965445000,-151.0,0.00031363,7]
[426861997,1782965445000,-839.73697445,0.0003135,2]
[426862003,1782965445000,-451.10351654,0.00031355,30]
[426861996,1782965445000,-839.73697447,0.0003135,2]
[426861998,1782965445000,-839.73697445,0.0003135,2]
[426862005,1782965445000,-151.0,0.00031363,7]
[426862002,1782965445000,-773.20424289,0.0003135,2]
[426862007,1782965445000,-12500.0,0.00031375,2]
[426862006,1782965445000,-152.0,0.00031363,7]
[426862010,1782965445000,-190.99906877,0.00031421,2]
[426862008,1782965445000,-573.3506609,0.00031385,10]
[426862011,1782965445000,-2000.0,0.00031428,4]
[426862015,1782965445000,-151.25438698,0.00031499,20]
[426862013,1782965445000,-418.04,0.00031483,3]
[426862009,1782965445000,-2000.0,0.00031396,19]
[426862014,1782965445000,-300.0,0.00031499,10]
[426862012,1782965445000,-200.0,0.00031458,2]
[426862016,1782965445000,-500.0,0.00031499,7]
[426862019,1782965445000,-706.0,0.000315,5]
[426862049,1782965445000,-1000.0,0.00031754,32]
[426862070,1782965445000,-500.0,0.00031999,120]
[426862045,1782965445000,-251.0,0.0003168,2]
[426862079,1782965445000,-183.57560704,0.00032,120]
[426862080,1782965445000,-230.78269692,0.00032,120]
[426862085,1782965445000,-217.70088768,0.00032,120]
[426862082,1782965445000,-180.30246998,0.00032,120]
[426862083,1782965445000,-258.50526286,0.00032,120]
[426862089,1782965445000,-165.94728545,0.00032,120]
[426862090,1782965445000,-186.20878887,0.00032,120]
[426862091,1782965445000,-261.51717711,0.00032,120]
[426862099,1782965445000,-373.10517474,0.00032,5]
[426862092,1782965445000,-182.36858068,0.00032,120]
[426862093,1782965445000,-173.56935396,0.00032,120]
[426862096,1782965445000,-234.5959199,0.00032,120]
[426862086,1782965445000,-173.1401856,0.00032,120]
[426862097,1782965445000,-190.77566128,0.00032,120]
[426862095,1782965445000,-200.0,0.00032,12]
[426862094,1782965445000,-800.0,0.00032,5]
[426862101,1782965445000,-151.0,0.00032,7]
[426862104,1782965445000,-182.551542,0.00032,7]
[426862100,1782965445000,-160.0,0.00032,120]
[426862102,1782965445000,-151.0,0.00032,7]
[426862103,1782965445000,-151.0,0.00032,7]
[426862107,1782965445000,-1593.31416,0.00032,7]
[426862106,1782965445000,-1593.31416,0.00032,7]
[426862105,1782965445000,-1593.31416,0.00032,7]
[426862108,1782965445000,-1593.31416,0.00032,7]
[426862046,1782965445000,-251.0,0.0003168,2]
[426862098,1782965445000,-800.0,0.00032,5]
[426862084,1782965445000,-200.0,0.00032,120]
[426862088,1782965445000,-177.98810057,0.00032,120]
[426862087,1782965445000,-191.0875639,0.00032,120]
[426862048,1782965445000,-12500.0,0.0003175,2]
[426862076,1782965445000,-239.31730281,0.00032,120]
[426862052,1782965445000,-1589.0,0.00031818,30]
[426862051,1782965445000,-1000.0,0.00031808,33]
[426862055,1782965445000,-1918.37160729,0.00031863,33]
[426862053,1782965445000,-328.77322114,0.0003183,2]
[426862057,1782965445000,-17207.71421799,0.000319,2]
[426862056,1782965445000,-12500.0,0.00031875,2]
[426862058,1782965445000,-2000.0,0.0003193,59]
[426862062,1782965445000,-2000.0,0.00031998,14]
[426862061,1782965445000,-1000.0,0.0003197,2]
[426862059,1782965445000,-2000.0,0.00031933,22]
[426862054,1782965445000,-1000.0,0.00031836,33]
[426862064,1782965445000,-500.0,0.00031999,120]
[426862060,1782965445000,-451.10351654,0.00031963,30]
[426862077,1782965445000,-846.57626724,0.00032,120]
[426862078,1782965445000,-199.94396279,0.00032,120]
[426862063,1782965445000,-2000.0,0.00031998,32]
[426862073,1782965445000,-10000.0,0.00032,2]
[426862068,1782965445000,-500.0,0.00031999,120]
[426862067,1782965445000,-500.0,0.00031999,14]
[426862072,1782965445000,-500.0,0.00031999,2]
[426862074,1782965445000,-12500.0,0.00032,2]
[426862075,1782965445000,-12500.0,0.00032,2]
[426862071,1782965445000,-500.0,0.00031999,120]
[426862066,1782965445000,-500.0,0.00031999,14]
[426862065,1782965445000,-500.0,0.00031999,120]
[426862069,1782965445000,-500.0,0.00031999,120]
[426862151,1782965446000,-2000.0,0.00032464,36]
[426862153,1782965446000,-363.63316919,0.00032492,2]
[426862145,1782965446000,-12500.0,0.00032375,2]
[426862149,1782965446000,-2000.0,0.00032399,20]
[426862147,1782965446000,-151.0,0.00032392,7]
[426862136,1782965446000,-507.49219555,0.00032259,14]
[426862144,1782965446000,-1589.0,0.00032366,30]
[426862138,1782965446000,-500.0,0.00032259,120]
[426862140,1782965446000,-18653.32927059,0.00032277,2]
[426862137,1782965446000,-500.0,0.00032259,14]
[426862150,1782965446000,-182.85283146,0.0003246,2]
[426862155,1782965446000,-1918.3713246,0.00032492,2]
[426862146,1782965446000,-154.723155,0.00032392,7]
[426862160,1782965446000,-12500.0,0.000325,2]
[426862154,1782965446000,-34785.8262138,0.00032492,2]
[426862152,1782965446000,-3000.0,0.00032465,36]
[426862157,1782965446000,-300.7999401,0.00032492,2]
[426862168,1782965446000,-151.0,0.000325,7]
[426862167,1782965446000,-151.0,0.000325,7]
[426862158,1782965446000,-2000.0,0.00032496,3]
[426862161,1782965446000,-12500.0,0.000325,2]
[426862156,1782965446000,-973.3858787,0.00032492,2]
[426862159,1782965446000,-2000.0,0.00032499,25]
[426862165,1782965446000,-156.80803778,0.000325,7]
[426862164,1782965446000,-800.0,0.000325,5]
[426862133,1782965446000,-12500.0,0.0003225,2]
[426862148,1782965446000,-151.0,0.00032392,7]
[426862135,1782965446000,-500.0,0.00032259,120]
[426862109,1782965446000,-179.42314049,0.00032,7]
[426862141,1782965446000,-49848.0,0.00032301,2]
[426862163,1782965446000,-231.19,0.000325,7]
[426862110,1782965446000,-151.0,0.00032,7]
[426862112,1782965446000,-778.81820823,0.0003201,2]
[426862113,1782965446000,-251.0,0.0003201,2]
[426862116,1782965446000,-1589.0,0.00032092,30]
[426862111,1782965446000,-151.0,0.00032,7]
[426862117,1782965446000,-295.81447753,0.00032104,120]
[426862115,1782965446000,-3000.0,0.00032054,35]
[426862114,1782965446000,-2000.0,0.00032053,35]
[426862121,1782965446000,-221.060993,0.00032156,7]
[426862123,1782965446000,-151.0,0.00032172,7]
[426862118,1782965446000,-12500.0,0.00032125,2]
[426862122,1782965446000,-503.0,0.00032172,7]
[426862120,1782965446000,-151.0,0.00032156,7]
[426862129,1782965446000,-3688.11983149,0.00032224,2]
[426862128,1782965446000,-500.0,0.00032222,120]
[426862119,1782965446000,-150.0,0.00032155,120]
[426862127,1782965446000,-518.36,0.00032222,7]